[Event "Romanian Superliga 2024"]
[Site "Mamaia"]
[Date "2024.09.29"]
[Round "2.15"]
[White "Motylev, Alexander"]
[Black "Marin, Mihail"]
[Result "1-0"]
[ECO "B03"]
[WhiteElo "2582"]
[BlackElo "2455"]
[Annotator "TA"]
[PlyCount "61"]
[EventDate "2024.09.26"]
[EventType "team-tourn"]
[EventCountry "ROU"]
[SourceTitle "playchess.com"]
[Source "ChessBase"]
[SourceQuality "1"]
[TimeControl "40/5400+30:1800+30"]

{[%evp 27,61,42,42,48,43,40,52,52,51,43,52,53,60,42,59,54,48,49,63,47,60,34,28,36,4,6,18,12,25,12,139,147,149,135,441,433]} 1. e4 {[%emt 0:00:11][%cal Be2e4,Be4e5][%mdl 32]} Nf6 {[%emt 0:00:07]} 2. e5 {[%emt 0:00:09]} Nd5 {[%emt 0:00:05]} 3. c4 {[%emt 0:00:45]} Nb6 {[%emt 0:00:05]} 4. d4 {[%emt 0:00:03]} d6 {[%emt 0:00:05]} 5. f4 {[%emt 0:00:27]} dxe5 {[%emt 0:00:30]} 6. fxe5 {[%emt 0:00:05]} Nc6 {[%emt 0:00:29]} 7. Be3 {[%emt 0:00:08]} Bf5 {[%emt 0:00:05]} 8. Nc3 {[%emt 0:00:23]} e6 {[%emt 0:00:05]} 9. Be2 {[%emt 0:03:09]} Be7 {[%emt 0:01:14]} 10. Nf3 {[%emt 0:00:06]} O-O {[%emt 0:00:04]} 11. O-O {[%emt 0:00:05]} f6 {[%emt 0:00:04]} 12. exf6 {[%emt 0:02:02]} Bxf6 {[%emt 0:00:11]} 13. Qd2 {[%emt 0:00:19]} Qe7 {[%emt 0:00:12]} 14. Rad1 {[%emt 0:00:24]} Rad8 {[%emt 0:00:06]} 15. Kh1 {[%emt 0:00:56]} h6 {[%emt 0:00:40]} 16. h3 {[%emt 0:02:14]} Kh8 {[%emt 0:01:07]} 17. Bg1 {[%emt 0:01:43] White is slightly better.} Rd7 {[%emt 0:12:47]} 18. c5 {[%emt 0:02:38]} Nd5 {[%emt 0:04:57]} 19. Bb5 {[%emt 0:09:03]} Qd8 {[%emt 0:04:17]} 20. Qe1 {[%emt 0:22:51]} Ndb4 {[%emt 0:28:36]} 21. Rd2 {[%emt 0:18:53]} ({Much worse is} 21. a3 Nc2 22. Qd2 N2xd4 $11) 21... a6 {[%emt 0:06:34]} 22. Ba4 {[%emt 0:00:29]} b5 {[%emt 0:02:07]} 23. cxb6 {[%emt 0:03:56]} cxb6 {[%emt 0:03:11]} 24. Ne4 {[%emt 0:02:41]} b5 {[%emt 0:03:33]} 25. Nxf6 {[%emt 0:08:34]} (25. Bb3 $5) 25... Rxf6 {[%emt 0:01:53]} 26. Bb3 {[%emt 0:00:20]} Na5 {[%emt 0:05:10]} 27. Ne5 {[%emt 0:11:09]} Nxb3 $1 {[%emt 0:01:42]} 28. axb3 {[%emt 0:00:02]} Rc7 {[%emt 0:01:37] [#]} (28... Rb7 $11 {remains equal.}) 29. d5 $1 $16 {[%emt 0:02:37][%mdl 512]} exd5 {[%emt 0:08:20] [#]} 30. Qh4 $1 {[%emt 0:03:45] Rxf5 is the strong threat.} Qe7 $2 {[%emt 0:05:54][%mdl 8192] [#]} (30... Qc8 $16 {is a better chance.}) 31. Rxf5 $1 {[%emt 0:01:04][%mdl 512] Weighted Error Value: White=0.03 (flawless) /Black=0.34.  Loses game:     	---       	Black=1      Mistake:       	---       	Black=1      Inaccurate:     	White=1     	---        OK:         	White=7     	Black=7      Best:        	---       	Black=1      Strong:       	White=1     	Black=1      Brilliant:      	White=2     	---} 1-0

[Event "Romanian Superliga 2024"]
[Site "Mamaia"]
[Date "2024.09.29"]
[Round "2.16"]
[White "Miron, Lucian-Costin"]
[Black "Parligras, Mircea-Emilian"]
[Result "1/2-1/2"]
[ECO "C67"]
[WhiteElo "2473"]
[BlackElo "2537"]
[Annotator "TA"]
[PlyCount "63"]
[EventDate "2024.09.26"]
[EventType "team-tourn"]
[EventCountry "ROU"]
[SourceTitle "playchess.com"]
[Source "ChessBase"]
[SourceQuality "1"]
[TimeControl "40/5400+30:1800+30"]

{[%evp 18,63,20,10,25,18,8,19,25,-2,-17,-13,-12,-12,-2,-6,-6,-5,-9,-8,-10,-7,0,0,0,0,0,0,0,0,0,-16,-2,-24,0,0,0,0,0,0,0,0,0,0,0,0,0,0]} 1. e4 {[%emt 0:00:04]} e5 {[%emt 0:00:22]} 2. Nf3 {[%emt 0:00:06]} Nc6 {[%emt 0:00:08]} 3. Bb5 {[%emt 0:00:05]} Nf6 {[%emt 0:00:14]} 4. O-O {[%emt 0:00:08][%cal Bh1f1,Bf1e1,Be1e5][%mdl 32]} Nxe4 {[%emt 0:00:22]} 5. Re1 {[%emt 0:00:11]} Nd6 {[%emt 0:00:14]} 6. Nxe5 {[%emt 0:00:14]} Nxe5 {[%emt 0:00:13]} 7. Rxe5+ {[%emt 0:00:08]} Be7 {[%emt 0:00:04][%cal Bf8e7,Be7f6,Bf6d4][%mdl 32]} 8. Bf1 {[%emt 0:00:09]} O-O {[%emt 0:00:09]} 9. d4 {[%emt 0:00:14]} Bf6 {[%emt 0:00:24]} 10. Re1 {[%emt 0:00:06]} Re8 {[%emt 0:00:10]} 11. Bf4 {[%emt 0:01:50]} Rxe1 {[%emt 0:00:57]} 12. Qxe1 {[%emt 0:00:05]} Ne8 {[%emt 0:00:17]} 13. Nc3 {[%emt 0:00:16]} Bxd4 {[%emt 0:00:19]} 14. Nd5 {[%emt 0:00:44]} d6 {[%emt 0:00:13][%cal Oe8f6]} 15. Bg5 {[%emt 0:00:35]} f6 {[%emt 0:00:11]} 16. Bh4 {[%emt 0:00:10] Threatens to win with Qe4.} g5 {[%emt 0:04:45]} 17. Qe4 {[%emt 0:01:02]} Bxb2 {[%emt 0:00:27]} 18. Re1 {[%emt 0:00:33]} Be5 {[%emt 0:00:47][%cal Oc8e6] [#] ...Be6! is the strong threat.} 19. f4 {[%emt 0:00:16]} gxh4 {[%emt 0:00:08]} 20. fxe5 {[%emt 0:00:10]} dxe5 {[%emt 0:00:07] ...Be6 would now be deadly.} 21. Bd3 $1 {[%emt 0:00:16]} Kf8 {[%emt 0:00:51] With the idea ...h3.} 22. Ne3 {[%emt 0:15:45]} Qe7 {[%emt 0:00:27] next ...h3 is good for Black.} 23. Qxh4 {[%emt 0:02:27]} Be6 {[%emt 0:00:58]} 24. Bxh7 {[%emt 0:08:03]} Rd8 {[%emt 0:01:06][%cal Oe7g7]} 25. Rf1 {[%emt 0:08:19]} Rd4 {[%emt 0:01:45]} 26. Be4 {[%emt 0:01:07] The position is equal.} Qa3 {[%emt 0:08:15]} 27. Rxf6+ {[%emt 0:01:37]} Nxf6 {[%emt 0:00:06]} 28. Qxf6+ {[%emt 0:00:03]} Bf7 {[%emt 0:00:07]} 29. Qh8+ {[%emt 0:00:05]} Bg8 {[%emt 0:00:06]} 30. Qf6+ {[%emt 0:00:03]} Bf7 {[%emt 0:00:06]} 31. Qh8+ {[%emt 0:00:03]} Bg8 {[%emt 0:00:06]} 32. Qf6+ {[%emt 0:00:03] An even fight not without its subleties.   Weighted Error Value: White=0.04 (flawless) /Black=0.02 (flawless) .  Inaccurate:     	White=1     	---        OK:         	White=9     	Black=11     Best:        	White=6     	Black=5      Strong:       	White=1     	---} 1/2-1/2

[Event "Romanian Superliga 2024"]
[Site "Mamaia"]
[Date "2024.09.29"]
[Round "2.17"]
[White "Gavrilescu, David"]
[Black "Secheres, Adrian-Simion"]
[Result "1-0"]
[ECO "C55"]
[WhiteElo "2547"]
[BlackElo "2344"]
[Annotator "RC"]
[PlyCount "63"]
[EventDate "2024.09.26"]
[EventType "team-tourn"]
[EventCountry "ROU"]
[SourceTitle "playchess.com"]
[Source "ChessBase"]
[SourceQuality "1"]
[TimeControl "40/5400+30:1800+30"]

1. e4 {[%emt 0:00:12]} e5 {[%emt 0:00:28]} 2. Nf3 {[%emt 0:00:33]} Nc6 {[%emt 0:00:19]} 3. Bc4 {[%emt 0:00:36]} Nf6 {[%emt 0:00:32]} 4. d3 {[%emt 0:00:29]} Be7 {[%emt 0:01:04]} 5. O-O {[%emt 0:00:32]} O-O {[%emt 0:00:48]} 6. Re1 {[%emt 0:00:34]} d6 {[%emt 0:01:17]} 7. a4 {[%emt 0:00:34]} Na5 {[%emt 0:00:59]} 8. Ba2 {[%emt 0:00:40]} c5 {[%emt 0:00:23]} 9. c3 {[%emt 0:00:42]} Nc6 {[%emt 0:00:19]} 10. Na3 {[%emt 0:00:37]} h6 {[%emt 0:01:45]} 11. Bd2 {[%emt 0:01:07]} Re8 {[%emt 0:01:44]} 12. Nc2 {[%emt 0:00:50]} Bf8 {[%emt 0:06:56]} 13. Ne3 {[%emt 0:00:59]} Be6 {[%emt 0:03:54]} 14. Bxe6 {[%emt 0:00:39]} Rxe6 {[%emt 0:01:28]} 15. c4 {[%emt 0:00:44]} Nh7 {[%emt 0:08:07]} 16. Nd5 {[%emt 0:08:48]} a5 {[%emt 0:15:13]} 17. h4 {[%emt 0:08:11]} Be7 {[%emt 0:09:09]} 18. g3 {[%emt 0:06:55]} Rg6 {[%emt 0:02:35]} 19. Kh1 {[%emt 0:06:33]} Nf6 {[%emt 0:07:58]} 20. Nh2 {[%emt 0:08:21]} h5 {[%emt 0:07:53]} 21. Rg1 {[%emt 0:10:56]} Nd4 {[%emt 0:07:35]} 22. Be3 {[%emt 0:13:19]} Ng4 {[%emt 0:05:09]} 23. Nxg4 {[%emt 0:02:04]} Rxg4 {[%emt 0:00:05]} 24. Rg2 {[%emt 0:01:15]} Qf8 {[%emt 0:06:29]} 25. f3 {[%emt 0:05:21]} Rg6 {[%emt 0:00:06]} 26. f4 {[%emt 0:00:06]} Rg4 {[%emt 0:01:23]} 27. f5 {[%emt 0:02:02]} Qd8 {[%emt 0:03:33]} 28. Bf2 {[%emt 0:03:29]} g6 {[%emt 0:01:06]} 29. fxg6 {[%emt 0:01:25]} Rxg6 {[%emt 0:01:07]} 30. Bxd4 {[%emt 0:01:45]} cxd4 {[%emt 0:00:07]} 31. Qxh5 {[%emt 0:00:08]} Kg7 {[%emt 0:01:00]} 32. Rf1 {[%emt 0:01:09]} 1-0

[Event "Romanian Superliga 2024"]
[Site "Mamaia"]
[Date "2024.09.29"]
[Round "2.18"]
[White "Nastore, Pavel-Alexandru"]
[Black "Tudor, Henry Edward"]
[Result "1/2-1/2"]
[ECO "B99"]
[WhiteElo "2252"]
[BlackElo "2347"]
[Annotator "ChessBase"]
[PlyCount "66"]
[EventDate "2024.09.26"]
[EventType "team-tourn"]
[EventCountry "ROU"]
[SourceTitle "playchess.com"]
[Source "ChessBase"]
[SourceQuality "1"]
[TimeControl "40/5400+30:1800+30"]

1. e4 {[%emt 0:00:55]} c5 {[%emt 0:00:04]} 2. Nf3 {[%emt 0:00:25]} d6 {[%emt 0:00:11]} 3. d4 {[%emt 0:00:28]} cxd4 {[%emt 0:00:08]} 4. Nxd4 {[%emt 0:00:06]} Nf6 {[%emt 0:00:05]} 5. Nc3 {[%emt 0:00:04]} a6 {[%emt 0:00:06]} 6. Bg5 {[%emt 0:00:47]} e6 {[%emt 0:00:32]} 7. f4 {[%emt 0:00:06]} Be7 {[%emt 0:00:04]} 8. Qf3 {[%emt 0:00:17]} Qc7 {[%emt 0:00:05]} 9. O-O-O {[%emt 0:00:19]} Nbd7 {[%emt 0:00:05]} 10. g4 {[%emt 0:00:04]} h6 {[%emt 0:00:05]} 11. Bxf6 {[%emt 0:00:24]} Bxf6 {[%emt 0:00:05]} 12. h4 {[%emt 0:02:01]} Nb6 {[%emt 0:00:33]} 13. Be2 {[%emt 0:00:03]} Bd7 {[%emt 0:01:06]} 14. g5 {[%emt 0:00:18]} Be7 {[%emt 0:00:02]} 15. g6 {[%emt 0:03:32]} fxg6 {[%emt 0:00:12]} 16. Qg4 {[%emt 0:00:05]} O-O-O {[%emt 0:00:06]} 17. Nxe6 {[%emt 0:00:04]} Bxe6 {[%emt 0:00:05]} 18. Qxe6+ {[%emt 0:00:02]} Kb8 {[%emt 0:00:05]} 19. Qxg6 {[%emt 0:02:37]} d5 {[%emt 0:00:14]} 20. Nxd5 {[%emt 0:11:07]} Nxd5 {[%emt 0:00:32]} 21. exd5 {[%emt 0:00:05]} Qxf4+ {[%emt 0:01:04]} 22. Kb1 {[%emt 0:00:04]} Bf6 {[%emt 0:00:45]} 23. Qg4 {[%emt 0:14:00]} Qe5 {[%emt 0:01:41]} 24. c3 {[%emt 0:00:07]} Rxd5 {[%emt 0:00:55]} 25. Rxd5 {[%emt 0:01:18]} Qxd5 {[%emt 0:00:03]} 26. Rd1 {[%emt 0:00:18]} Qe5 {[%emt 0:09:41]} 27. Rd7 {[%emt 0:10:45]} Rd8 {[%emt 0:05:20]} 28. Rxd8+ {[%emt 0:00:09]} Bxd8 {[%emt 0:00:07]} 29. h5 {[%emt 0:00:02]} Bg5 {[%emt 0:01:42]} 30. a4 {[%emt 0:03:41]} Bf6 {[%emt 0:10:24]} 31. Bf3 {[%emt 0:01:26]} Qe1+ {[%emt 0:01:10]} 32. Ka2 {[%emt 0:00:11]} Qe7 {[%emt 0:00:33]} 33. Qe4 {[%emt 0:00:20]} Qxe4 {[%emt 0:00:47]} 1/2-1/2

[Event "Romanian Superliga 2024"]
[Site "Mamaia"]
[Date "2024.09.29"]
[Round "2.19"]
[White "Hamitevici, Vladimir"]
[Black "Mendonca, Leon Luke"]
[Result "0-1"]
[ECO "A13"]
[WhiteElo "2419"]
[BlackElo "2622"]
[Annotator "TA"]
[PlyCount "58"]
[EventDate "2024.09.26"]
[EventType "team-tourn"]
[EventCountry "ROU"]
[SourceTitle "playchess.com"]
[Source "ChessBase"]
[SourceQuality "1"]
[TimeControl "40/5400+30:1800+30"]

{[%evp 9,58,1,43,13,32,11,115,51,61,-68,-38,-74,43,46,22,46,54,30,45,40,28,40,55,-26,27,0,0,-23,-23,-33,-11,-49,0,0,0,0,29,-213,0,-210,0,-438,-327,-353,-298,-415,-415,-513,-398,-660,-503]} 1. c4 {[%emt 0:00:45]} e6 {[%emt 0:01:46]} 2. g3 {[%emt 0:00:39]} d5 {[%emt 0:00:22]} 3. Bg2 {[%emt 0:00:35]} d4 {[%emt 0:01:20]} 4. Nf3 {[%emt 0:01:06]} c5 {[%emt 0:01:27]} 5. e3 {[%emt 0:01:13]} Ne7 {[%emt 0:06:03]} 6. exd4 {[%emt 0:01:23] A13: Engelse Opening: 1...e6.} cxd4 {[%emt 0:00:06]} 7. b4 {[%emt 0:01:00]} a5 $146 {[%emt 0:06:02] Maintains equality. Fout (1.0)} (7... Ng6 $1 $11) ({Predecessor:} 7... Nf5 8. Ba3 Be7 9. O-O O-O 10. d3 Nd7 11. Re1 Re8 12. Ne5 Qc7 13. Nxd7 Bxd7 {0-1 Ivanchuk,V (2678)-Keymer,V (2591) Tetraktys Concept Mgmt blitz 2021 (6)}) {White should attempt.} 8. Bb2 {[%emt 0:03:49] Fout (0.6)} (8. b5 $16) 8... Nf5 {[%emt 0:07:03]} {White should consider.} 9. Qa4+ {[%emt 0:08:05] Fout (1.3)} (9. b5 $14) 9... Nd7 $15 {[%emt 0:05:27][%cal Ob7b5] OK} 10. a3 {[%emt 0:12:53] [#] Onnauwkeurig} {Black should try.} Ra6 {[%emt 0:06:57] Fout (1.2)} (10... b5 $1 $17 {[%cal Rb5a4]} 11. cxb5 (11. Qxb5 axb4 12. axb4 Rb8 $15) 11... Bb7) 11. Qc2 {[%emt 0:03:27]} axb4 {[%emt 0:17:57] Beste (Gemakkelijk)} 12. axb4 {[%emt 0:00:47] Rxa6 zou dodelijk zijn.} Rxa1 {[%emt 0:01:07] OK} 13. Bxa1 {[%emt 0:00:03] Sterke dreiging met c5.} Bxb4 {[%emt 0:00:17] OK} 14. Nxd4 {[%emt 0:01:21] Beste (Gemakkelijk)} Qf6 {[%emt 0:03:42] OK} 15. Nb3 {[%emt 0:03:36] OK} Qg6 {[%emt 0:00:37] OK} {White should try.} 16. Nd4 {[%emt 0:15:35] Fout (0.8)} (16. Qe4 $1 $14) {Black should attempt.} 16... Qf6 {[%emt 0:05:49] Fout (0.5)} (16... Nh4 $1) 17. Nb3 $11 {[%emt 0:00:42] OK} Qg6 {[%emt 0:00:05] OK} 18. Nd4 {[%emt 0:01:54] Nxf5 is de sterke dreiging.} Nh4 {[%emt 0:12:24] OK} 19. Be4 {[%emt 0:01:50] OK} f5 $1 {[%emt 0:00:06] Sterk} 20. Qb3 {[%emt 0:09:24] OK} O-O {[%emt 0:07:36] is preferable. Fout (0.5)} (20... Bc5 $1 $15 21. Bxb7 O-O (21... Bxb7 22. Qxb7 Bxd4 23. Bxd4 $16)) 21. Bc2 $1 {[%emt 0:01:49] Sterk} ({Speel niet} 21. Qxb4 fxe4 22. Qb5 (22. gxh4 $2 {vergaat.} Qg2 $19) 22... Ng2+ 23. Kf1 Qf6 $19) 21... e5 $1 $36 {[%emt 0:01:35][%mdl 2048] Zwart heeft enige druk. Sterk} ({Neem niet} 21... Ng2+ $2 22. Kf1 $18) 22. c5+ $1 {[%emt 0:10:49] Sterk} (22. Qxb4 $2 exd4 23. Kd1 (23. gxh4 $2 Qg2 $19) 23... Qc6 $19) 22... Kh8 {[%emt 0:00:29] Onnauwkeurig} 23. c6 $2 {[%emt 0:08:22] White is secure. Verliest partij (2.4)} (23. Ne6 $1 $11) 23... exd4 {[%emt 0:09:47]} 24. cxd7 {[%emt 0:00:08] OK} {Black should consider.} Qc6 $2 {[%emt 0:00:36] Gemiste overwinning (2.1)} (24... Bxd7 $19 25. Qxb4 Rc8 26. Bxd4 (26. gxh4 Qg2 $11) 26... Nf3+ (26... Qc6 27. gxh4 Qxh1+ 28. Ke2 $11) 27. Ke2 Nxd4+ 28. Qxd4 Bb5+ 29. d3 (29. Bd3 $2 Qe8+ 30. Kf1 Rd8 $19) 29... Rxc2+ 30. Nd2 Qh5+ 31. f3 Qe8+ 32. Qe3 Bxd3+ 33. Kf2 (33. Kxd3 $2 {verliest.} Rc3+ 34. Kxc3 Qxe3+ 35. Kc2 Qf2 $19) 33... Qd7) 25. f3 {[%emt 0:01:21][%mdl 8192] White is untroubled. Verliest partij (4.4)} (25. Qxb4 $11 Qxh1+ 26. Ke2 Qf3+ 27. Ke1) 25... Qxf3 {[%emt 0:00:50]} 26. Qxf3 {[%emt 0:06:58]} Nxf3+ {[%emt 0:00:01]} 27. Ke2 {[%emt 0:01:24] Onnauwkeurig} Bxd7 {[%emt 0:00:05] OK} 28. Rf1 {[%emt 0:00:23]} Bb5+ {[%emt 0:01:52]} 29. d3 $2 {[%emt 0:00:14] [#] Fout (2.6)} (29. Bd3 Re8+ (29... Nxh2 $2 30. Bxb5 Nxf1 31. Kxf1 $19) 30. Kxf3 Bxd3 31. Rc1) 29... Ne1 $1 {[%emt 0:00:19] Blunder waarde: Wit=0.76/Zwart=0.53.  Verliest partij:   	Wit=2      	---        Gemiste overwinning: 	---       	Zwart=1      Fout:        	Wit=4      	Zwart=4      Onnauwkeurig:    	Wit=2      	Zwart=1      OK:         	Wit=5      	Zwart=8      Beste:        	Wit=1      	Zwart=1      Sterk:        	Wit=2      	Zwart=2} 0-1

[Event "Romanian Superliga 2024"]
[Site "Mamaia"]
[Date "2024.09.29"]
[Round "2.20"]
[White "Aryan Chopra"]
[Black "Raceanu, Valentin"]
[Result "1-0"]
[ECO "B38"]
[WhiteElo "2620"]
[BlackElo "2427"]
[Annotator "TA"]
[PlyCount "59"]
[EventDate "2024.09.26"]
[EventType "team-tourn"]
[EventCountry "ROU"]
[SourceTitle "playchess.com"]
[Source "ChessBase"]
[SourceQuality "1"]
[TimeControl "40/5400+30:1800+30"]

{[%evp 20,59,43,42,51,39,40,28,43,3,8,0,10,11,105,0,110,93,121,120,150,122,277,281,351,354,395,403,479,484,466,425,462,474,511,516,478,468,714,685,685,662]} 1. e4 {[%emt 0:00:02]} c5 {[%emt 0:03:00]} 2. Nf3 {[%emt 0:00:06]} g6 {[%emt 0:00:03]} 3. c4 {[%emt 0:00:17]} Bg7 {[%emt 0:00:08]} 4. d4 {[%emt 0:00:06]} cxd4 {[%emt 0:00:17]} 5. Nxd4 {[%emt 0:00:07]} Nc6 {[%emt 0:04:14]} 6. Be3 {[%emt 0:00:05]} Nf6 {[%emt 0:00:19]} 7. Nc3 {[%emt 0:00:09]} d6 {[%emt 0:00:35]} 8. Be2 {[%emt 0:00:15]} O-O {[%emt 0:00:13]} 9. O-O {[%emt 0:00:12]} Bd7 {[%emt 0:02:16]} 10. Nc2 {[%emt 0:00:29]} Rc8 {[%emt 0:02:46]} 11. f3 {[%emt 0:01:40]} Be6 {[%emt 0:13:38]} 12. Qd2 {[%emt 0:06:57]} Nd7 {[%emt 0:01:24]} 13. Rab1 {[%emt 0:04:31]} f5 {[%emt 0:04:54] White has an edge.} 14. b3 {[%emt 0:10:50][%cal Bb2b3,Bb3b4][%mdl 32]} f4 {[%emt 0:26:56]} 15. Bf2 {[%emt 0:00:14]} Qa5 {[%emt 0:00:08]} 16. b4 {[%emt 0:00:40]} Qg5 {[%emt 0:00:18]} (16... Bxc3 $11 17. Qxc3 Qg5) 17. Rfc1 {[%emt 0:32:28]} (17. Nd5 $1 $16) 17... Rf7 {[%emt 0:14:39] [#]} (17... Bxc3 $11 18. Qxc3 Nce5) 18. Nd5 $1 $16 {[%emt 0:02:09]} Nce5 {[%emt 0:06:24] [#]} 19. h4 $1 {[%emt 0:07:25]} (19. Bxa7 Nxc4 20. Bxc4 Rxc4 $11) (19. Nd4 Bh3 20. Nxf4 Rxf4 $11) 19... Qh6 {[%emt 0:00:08]} 20. Nd4 $36 {[%emt 0:00:08][%mdl 2048] Keeping Black busy.} (20. Bxa7 $6 g5 (20... Nxc4 21. Bxc4 Rxc4 22. Nd4 $14) (20... Qxh4 21. Bf2 $16) 21. hxg5 Qxg5 $11) 20... Bxd5 {[%emt 0:04:07] Loses the game.} (20... Nf8 $16) 21. cxd5 $18 {[%emt 0:00:31]} Rxc1+ {[%emt 0:05:07]} 22. Rxc1 {[%emt 0:00:06]} (22. Qxc1 Nf8 23. Qc8 Bf6 $18) 22... Bf6 {[%emt 0:00:09]} 23. g3 {[%emt 0:05:09]} g5 {[%emt 0:00:08]} 24. Nf5 {[%emt 0:02:18][%csl LRa7,LRh6] White is clearly winning.} Qg6 {[%emt 0:00:30]} 25. gxf4 {[%emt 0:00:39]} (25. Bxa7 gxh4 26. a4 (26. Qxf4 $2 Bg5 $19) 26... hxg3 (26... fxg3 $2 27. f4 $18) 27. Qxf4 Bg5 28. Rc8+ Rf8 29. Rxf8+ (29. Qxg3 $2 Rxc8 30. f4 Rc1+ 31. Kf2 Bxf4 $19) 29... Kxf8 30. Qxg3 Nf6 $16) 25... gxf4+ {[%emt 0:00:45]} 26. Kh1 {[%emt 0:00:32][%cal Oc1g1] Black must now prevent Rg1!} Qh5 {[%emt 0:01:40]} 27. Qxf4 {[%emt 0:00:43]} (27. Bxa7 Bxh4 28. Rc8+ Nf8 $17) 27... Rf8 {[%emt 0:02:55]} 28. Qh6 {[%emt 0:01:23] Wards off Ng6} ({Much less strong is} 28. Bxa7 Kh8 29. a4 b6 $18) 28... Qf7 {[%emt 0:04:55]} (28... Qxh6 $142 29. Nxh6+ Kh8) 29. Rg1+ {[%emt 0:02:51]} Kh8 {[%emt 0:00:18]} 30. f4 {[%emt 0:00:04] Weighted Error Value: White=0.12 (very precise) /Black=0.42.  Mistake:       	White=1     	Black=4      Inaccurate:     	White=1     	Black=1      OK:         	White=10    	Black=3      Best:        	White=1     	Black=1      Strong:       	White=1     	---} 1-0

[Event "Romanian Superliga 2024"]
[Site "Mamaia"]
[Date "2024.09.29"]
[Round "2.21"]
[White "Soltanici, Ruslan"]
[Black "Nisipeanu, Liviu-Dieter"]
[Result "0-1"]
[ECO "C77"]
[WhiteElo "2316"]
[BlackElo "2580"]
[Annotator "TA"]
[PlyCount "50"]
[EventDate "2024.09.26"]
[EventType "team-tourn"]
[EventCountry "ROU"]
[SourceTitle "playchess.com"]
[Source "ChessBase"]
[SourceQuality "1"]
[TimeControl "40/5400+30:1800+30"]

{[%evp 11,50,10,9,0,0,0,10,-54,-57,-44,-46,-49,-61,-46,-33,-42,-40,-33,-38,-54,-39,-36,-34,-29,-28,-31,-39,-45,-6,-320,-324,-306,-315,-698,-716,-805,-823,-793,-760,-733,-612]} 1. e4 {[%emt 0:00:08]} e5 {[%emt 0:00:06]} 2. Nf3 {[%emt 0:00:10]} Nc6 {[%emt 0:00:05]} 3. Bb5 {[%emt 0:00:12][%cal Bf1b5,Bb5a4,Ba4b3][%mdl 32]} a6 {[%emt 0:00:06]} 4. Ba4 {[%emt 0:00:12]} Nf6 {[%emt 0:00:10]} 5. Nc3 {[%emt 0:01:13]} b5 {[%emt 0:02:33]} 6. Bb3 {[%emt 0:00:08]} Be7 {[%emt 0:00:08]} 7. a4 {[%emt 0:01:46]} b4 {[%emt 0:01:50]} 8. Nd5 {[%emt 0:00:14]} Na5 {[%emt 0:03:04]} 9. Nxe5 {[%emt 0:05:55]} (9. Ba2 $11) 9... Nxb3 $15 {[%emt 0:02:34]} 10. cxb3 {[%emt 0:00:13]} Nxd5 {[%emt 0:11:06]} 11. exd5 {[%emt 0:00:49]} O-O {[%emt 0:00:30]} 12. O-O {[%emt 0:21:52]} Bb7 {[%emt 0:00:22][%mdl 1024] Black has compensation.} 13. Qf3 {[%emt 0:00:16]} a5 {[%emt 0:00:05]} 14. Re1 {[%emt 0:24:12]} Ra6 {[%emt 0:07:25]} 15. d4 {[%emt 0:02:47]} Rd6 {[%emt 0:03:00]} 16. Bf4 {[%emt 0:05:22]} Bxd5 {[%emt 0:03:12]} 17. Qd3 {[%emt 0:00:49]} Re6 {[%emt 0:05:51]} 18. Nc4 {[%emt 0:02:23]} Qa8 {[%emt 0:11:57]} 19. f3 {[%emt 0:01:19]} c5 {[%emt 0:06:48]} 20. Be3 $2 {[%emt 0:21:31][%mdl 8192] [#] White does not recover from this.} (20. Rad1 $11 {and White has nothing to worry.}) 20... Bxf3 $1 $19 {[%emt 0:02:25][%mdl 512]} 21. gxf3 {[%emt 0:03:26] And now d5 would win.} (21. g3 Re8) 21... Rg6+ {[%emt 0:00:10]} ({Not} 21... Qxf3 22. Nd2 (22. dxc5 $2 {loses.} Rg6+ $19) 22... Qd5 23. Bf2 $14) 22. Qxg6 $2 {[%emt 0:00:52]} ({Don't go for} 22. Kf2 $2 Bh4+ 23. Ke2 Rg2+ $19) (22. Bg5 Bxg5 (22... Rxg5+ $2 23. Kh1 $19) 23. Kh1 cxd4 24. Rf1) 22... fxg6 {[%emt 0:00:32] Black is clearly winning.} 23. Nd2 {[%emt 0:00:38]} cxd4 {[%emt 0:00:48]} 24. Bxd4 {[%emt 0:01:09]} Qd5 {[%emt 0:00:18]} 25. Be3 {[%emt 0:01:16]} Bc5 {[%emt 0:01:20] Weighted Error Value: White=0.65/Black=0.03 (flawless) .  Loses game:     	White=1     	---        Mistake:       	White=2     	---        Inaccurate:     	---       	Black=1      OK:         	White=6     	Black=9      Best:        	---       	Black=2      Brilliant:      	---       	Black=1} 0-1